[Event "GER-ch Rapid Women 2017"]
[Site "Erfurt"]
[Date "2017.07.29"]
[Round "2"]
[White "Daemering, Katrin"]
[Black "Zahn, Alina"]
[Result "1-0"]
[ECO "C60"]
[WhiteElo "2033"]
[BlackElo "2025"]
[Annotator "NA"]
[PlyCount "111"]
[EventDate "2017.??.??"]
[EventType "swiss"]
[EventCountry "GER"]
[SourceTitle "playchess.com"]
[Source "ChessBase"]
[SourceQuality "1"]
[TimeControl "1200"]

1. e4 {[%emt 0:00:02]} e5 {[%emt 0:00:00]} 2. Nf3 {[%emt 0:00:01]} Nc6 {[%emt 0:00:01]} 3. Bb5 {[%emt 0:00:02]} g6 {[%emt 0:00:08]} 4. O-O {[%emt 0:00:05]} Bg7 {[%emt 0:00:03]} 5. c3 {[%emt 0:00:10]} Nge7 {[%emt 0:00:07]} 6. d4 {[%emt 0:00:09]} exd4 {[%emt 0:00:02]} 7. cxd4 {[%emt 0:00:02]} d5 {[%emt 0:00:03]} 8. exd5 {[%emt 0:00:40]} Nxd5 {[%emt 0:01:33]} 9. Bxc6+ {[%emt 0:01:08]} bxc6 {[%emt 0:00:03]} 10. Re1+ {[%emt 0:00:26]} Ne7 {[%emt 0:00:39]} 11. Qe2 {[%emt 0:01:00]} Be6 {[%emt 0:00:08]} 12. Ng5 {[%emt 0:00:23]} Qd7 {[%emt 0:03:46]} 13. Nxe6 {[%emt 0:00:45]} fxe6 {[%emt 0:00:02]} 14. Qxe6 {[%emt 0:02:23]} Qxe6 {[%emt 0:00:02]} 15. Rxe6 {[%emt 0:00:02]} Kf7 {[%emt 0:00:03]} 16. Re4 {[%emt 0:00:16]} Nf5 {[%emt 0:00:30]} 17. Bf4 {[%emt 0:02:56]} c5 {[%emt 0:02:11]} 18. Nd2 {[%emt 0:03:32]} cxd4 {[%emt 0:01:54]} 19. Bxc7 {[%emt 0:00:12]} Rac8 {[%emt 0:00:10]} 20. Ba5 {[%emt 0:01:50]} Rc2 {[%emt 0:00:11]} 21. Rae1 {[%emt 0:00:30]} Rhc8 {[%emt 0:01:15]} 22. g4 {[%emt 0:00:02]} Nh4 {[%emt 0:02:03]} 23. Re7+ {[%emt 0:00:02]} Kg8 {[%emt 0:00:08]} 24. Kf1 {[%emt 0:01:03]} Rc1 {[%emt 0:01:31]} 25. Rxa7 {[%emt 0:00:17]} d3 {[%emt 0:00:29]} 26. Rxg7+ {[%emt 0:00:43]} Kxg7 {[%emt 0:00:03]} 27. Bc3+ {[%emt 0:00:00]} Kf7 {[%emt 0:00:09]} 28. Rxc1 {[%emt 0:00:02]} Re8 {[%emt 0:00:06]} 29. f3 {[%emt 0:00:04]} Re2 {[%emt 0:00:04]} 30. Kg1 {[%emt 0:00:10]} Rg2+ {[%emt 0:00:18]} 31. Kh1 {[%emt 0:00:01]} Re2 {[%emt 0:00:03]} 32. a4 {[%emt 0:00:01]} Ke6 {[%emt 0:00:10]} 33. a5 {[%emt 0:00:01]} Kd5 {[%emt 0:00:06]} 34. a6 {[%emt 0:00:02]} Re8 {[%emt 0:00:03]} 35. a7 {[%emt 0:00:07]} g5 {[%emt 0:00:12]} 36. Ra1 {[%emt 0:00:02]} Ra8 {[%emt 0:00:03]} 37. Kg1 {[%emt 0:00:02]} Ng6 {[%emt 0:00:06]} 38. Ne4 {[%emt 0:00:01]} h6 {[%emt 0:00:04]} 39. Kf2 {[%emt 0:00:01]} Nf4 {[%emt 0:00:04]} 40. Ke3 {[%emt 0:00:02]} Kc6 {[%emt 0:00:04]} 41. Be5 {[%emt 0:00:03]} Kb7 {[%emt 0:00:08]} 42. Bb8 {[%emt 0:00:01]} Ne6 {[%emt 0:00:20]} 43. Kxd3 {[%emt 0:00:01]} Kc6 {[%emt 0:00:05]} 44. Nf6 {[%emt 0:00:01]} Nc5+ {[%emt 0:00:03]} 45. Kc4 {[%emt 0:00:02]} Ne6 {[%emt 0:00:08]} 46. b4 {[%emt 0:00:00]} Kb7 {[%emt 0:00:03]} 47. b5 {[%emt 0:00:01]} Nd8 {[%emt 0:00:06]} 48. Nd7 {[%emt 0:00:02]} Nf7 {[%emt 0:00:02]} 49. Kd5 {[%emt 0:00:02]} Kc8 {[%emt 0:00:02]} 50. Kc6 {[%emt 0:00:02]} Nd8+ {[%emt 0:00:03]} 51. Kd6 {[%emt 0:00:01]} Nf7+ {[%emt 0:00:00]} 52. Ke7 {[%emt 0:00:01]} Nh8 {[%emt 0:00:04]} 53. Nb6+ {[%emt 0:00:01]} Kb7 {[%emt 0:00:01]} 54. Nxa8 {[%emt 0:00:01]} Kxa8 {[%emt 0:00:01]} 55. Kf6 {[%emt 0:00:02]} Kb7 {[%emt 0:00:01]} 56. Kg7 {[%emt 0:00:01]} 1-0

[Event "GER-ch Rapid Women 2017"]
[Site "Erfurt"]
[Date "2017.07.29"]
[Round "2"]
[White "Zimmer, Elke"]
[Black "Bachmann, Sylvia"]
[Result "0-1"]
[ECO "C55"]
[WhiteElo "1950"]
[BlackElo "1677"]
[Annotator "NA"]
[PlyCount "91"]
[EventDate "2017.??.??"]
[EventType "swiss"]
[EventCountry "GER"]
[SourceTitle "playchess.com"]
[Source "ChessBase"]
[SourceQuality "1"]
[TimeControl "1200"]

1. e4 {[%emt 0:00:02]} e5 {[%emt 0:00:08]} 2. Nf3 {[%emt 0:00:02]} Nc6 {[%emt 0:00:01]} 3. Bc4 {[%emt 0:00:01]} Nf6 {[%emt 0:00:01]} 4. d3 {[%emt 0:00:01]} Be7 {[%emt 0:00:02]} 5. Nc3 {[%emt 0:00:07]} O-O {[%emt 0:00:02]} 6. h3 {[%emt 0:00:16]} h6 {[%emt 0:00:06]} 7. Be3 {[%emt 0:00:02]} d6 {[%emt 0:00:18]} 8. Nd5 {[%emt 0:00:09]} Be6 {[%emt 0:00:09]} 9. c3 {[%emt 0:00:06]} Qd7 {[%emt 0:00:39]} 10. Nxe7+ {[%emt 0:00:13]} Qxe7 {[%emt 0:00:11]} 11. Bb3 {[%emt 0:00:05]} d5 {[%emt 0:00:18]} 12. Bc2 {[%emt 0:00:25]} dxe4 {[%emt 0:00:11]} 13. dxe4 {[%emt 0:00:01]} Rfd8 {[%emt 0:00:43]} 14. Qe2 {[%emt 0:00:01]} Rd7 {[%emt 0:00:42]} 15. O-O Rad8 16. Ba4 {[%emt 0:00:22]} Nxe4 {[%emt 0:02:06]} 17. Bxc6 {[%emt 0:00:04]} bxc6 {[%emt 0:00:01]} 18. Nxe5 {[%emt 0:00:02]} Rd6 {[%emt 0:00:31]} 19. Qf3 {[%emt 0:00:32]} f5 {[%emt 0:01:25]} 20. Ng6 {[%emt 0:00:36]} Qf6 {[%emt 0:00:42]} 21. Nf4 {[%emt 0:00:01]} Bc4 {[%emt 0:00:27]} 22. Rfd1 {[%emt 0:00:32]} Ng5 {[%emt 0:00:17]} 23. Qh5 {[%emt 0:01:07]} Rxd1+ {[%emt 0:01:48]} 24. Rxd1 {[%emt 0:00:02]} Bxa2 {[%emt 0:00:34]} 25. Rxd8+ {[%emt 0:01:16]} Qxd8 {[%emt 0:00:03]} 26. Bd4 {[%emt 0:00:09]} Bf7 {[%emt 0:00:24]} 27. Qe2 {[%emt 0:00:09]} Ne4 {[%emt 0:00:15]} 28. Qc2 {[%emt 0:00:48]} Qg5 {[%emt 0:00:14]} 29. Be3 {[%emt 0:00:10]} Qf6 {[%emt 0:00:03]} 30. Bxa7 {[%emt 0:00:14]} Bd5 {[%emt 0:00:55]} 31. Qd3 {[%emt 0:01:02]} Qd6 {[%emt 0:00:13]} 32. Nxd5 {[%emt 0:01:57]} cxd5 {[%emt 0:00:22]} 33. Qd4 {[%emt 0:00:06]} c5 {[%emt 0:00:39]} 34. Qd1 {[%emt 0:00:02]} Nf6 {[%emt 0:00:41]} 35. Qb3 {[%emt 0:01:13]} Kh7 {[%emt 0:00:24]} 36. Qb5 {[%emt 0:01:25]} c4 {[%emt 0:00:37]} 37. Qb7 {[%emt 0:00:07]} Qe5 {[%emt 0:00:14]} 38. Bd4 {[%emt 0:00:06]} Qe1+ {[%emt 0:00:15]} 39. Kh2 {[%emt 0:00:02]} Qe6 {[%emt 0:00:04]} 40. f3 {[%emt 0:00:25]} Nh5 {[%emt 0:00:12]} 41. Qc7 {[%emt 0:00:41]} Qg6 {[%emt 0:00:44]} 42. Qe5 {[%emt 0:02:08]} f4 {[%emt 0:00:11]} 43. Bf2 {[%emt 0:00:00]} Ng3 {[%emt 0:00:16]} 44. Qxd5 {[%emt 0:00:48]} Nf1+ {[%emt 0:00:14]} 45. Kg1 {[%emt 0:00:00]} Qb1 {[%emt 0:00:07]} 46. Qe4+ {[%emt 0:00:01] Nd2+ [%clk 0:01:07]} 0-1

[Event "GER-ch Rapid Women 2017"]
[Site "Erfurt"]
[Date "2017.07.29"]
[Round "2"]
[White "Perez Celis, Alba"]
[Black "Mader, Lena"]
[Result "1-0"]
[ECO "B20"]
[WhiteElo "1790"]
[BlackElo "1880"]
[Annotator "NA"]
[PlyCount "73"]
[EventDate "2017.??.??"]
[EventType "swiss"]
[EventCountry "GER"]
[SourceTitle "playchess.com"]
[Source "ChessBase"]
[SourceQuality "1"]
[TimeControl "1200"]

1. e4 {[%emt 0:00:03]} c5 {[%emt 0:00:01]} 2. Ne2 {[%emt 0:00:04]} e6 {[%emt 0:00:04]} 3. Nbc3 {[%emt 0:00:03]} d5 {[%emt 0:00:13]} 4. exd5 {[%emt 0:00:04]} exd5 {[%emt 0:00:01]} 5. d4 {[%emt 0:00:02]} Nf6 {[%emt 0:00:24]} 6. Bg5 {[%emt 0:00:37]} Be7 {[%emt 0:00:19]} 7. dxc5 {[%emt 0:00:11]} O-O {[%emt 0:01:08]} 8. Qd2 {[%emt 0:03:49]} h6 {[%emt 0:04:06]} 9. Be3 {[%emt 0:00:32]} Na6 {[%emt 0:00:48]} 10. O-O-O {[%emt 0:00:42]} Be6 {[%emt 0:00:13]} 11. Nd4 {[%emt 0:04:29]} Nxc5 {[%emt 0:00:27]} 12. f3 {[%emt 0:00:31]} a6 {[%emt 0:01:25]} 13. g4 {[%emt 0:00:05]} Rc8 {[%emt 0:00:32]} 14. g5 {[%emt 0:00:11]} hxg5 {[%emt 0:00:49]} 15. Bxg5 {[%emt 0:00:27]} Nh7 {[%emt 0:00:36]} 16. Be3 {[%emt 0:00:58]} b5 {[%emt 0:01:13]} 17. Rg1 {[%emt 0:00:31]} Bf6 {[%emt 0:00:28]} 18. Qg2 {[%emt 0:01:44]} b4 {[%emt 0:01:40]} 19. Nxe6 {[%emt 0:00:24]} fxe6 {[%emt 0:00:38]} 20. Bxc5 {[%emt 0:00:51]} Rxc5 {[%emt 0:00:12]} 21. Na4 {[%emt 0:00:01]} Rc7 {[%emt 0:00:22]} 22. Bd3 {[%emt 0:00:04]} Ng5 {[%emt 0:00:50]} 23. f4 {[%emt 0:00:05]} Nh7 {[%emt 0:00:39]} 24. Qg6 {[%emt 0:00:03]} Qd7 {[%emt 0:00:58]} 25. Qxh7+ {[%emt 0:00:02]} Kf7 {[%emt 0:00:00]} 26. b3 {[%emt 0:00:19]} Rfc8 {[%emt 0:00:11]} 27. f5 {[%emt 0:00:07]} e5 {[%emt 0:00:16]} 28. Nb6 {[%emt 0:00:07]} Qc6 {[%emt 0:00:07]} 29. Nxc8 {[%emt 0:00:02]} e4 {[%emt 0:00:12]} 30. Qh5+ {[%emt 0:00:31]} Kf8 {[%emt 0:00:03]} 31. Nd6 {[%emt 0:00:31]} exd3 {[%emt 0:00:06]} 32. Qh8+ {[%emt 0:00:09]} Ke7 {[%emt 0:00:04]} 33. Rge1+ {[%emt 0:00:17]} Be5 {[%emt 0:00:05]} 34. Qxg7+ {[%emt 0:00:07]} Kxd6 {[%emt 0:00:01]} 35. Qxe5+ {[%emt 0:00:04]} Kc5 {[%emt 0:00:01]} 36. Rxd3 {[%emt 0:00:10]} Kb5 {[%emt 0:00:03]} 37. Rxd5+ {[%emt 0:00:04] Qxc2# [%clk 0:00:43]} 1-0

[Event "GER-ch Rapid Women 2017"]
[Site "Erfurt"]
[Date "2017.07.29"]
[Round "2"]
[White "Yueksel, Anja"]
[Black "Ganser, Ganokorn"]
[Result "0-1"]
[ECO "B90"]
[WhiteElo "1472"]
[BlackElo "1698"]
[Annotator "NA"]
[PlyCount "100"]
[EventDate "2017.??.??"]
[EventType "swiss"]
[EventCountry "GER"]
[SourceTitle "playchess.com"]
[Source "ChessBase"]
[SourceQuality "1"]
[TimeControl "1200"]

1. e4 {[%emt 0:00:01]} c5 {[%emt 0:00:01]} 2. Nf3 {[%emt 0:00:02]} d6 {[%emt 0:00:04]} 3. d4 {[%emt 0:00:02]} cxd4 {[%emt 0:00:05]} 4. Nxd4 {[%emt 0:00:02]} Nf6 {[%emt 0:00:03]} 5. Nc3 {[%emt 0:00:02]} a6 {[%emt 0:00:01]} 6. Be3 {[%emt 0:00:02]} e5 {[%emt 0:00:09]} 7. Nf3 {[%emt 0:01:14]} Be7 {[%emt 0:00:29]} 8. Be2 {[%emt 0:00:04]} O-O {[%emt 0:00:02]} 9. O-O {[%emt 0:00:58]} Nbd7 {[%emt 0:01:14]} 10. Nd5 {[%emt 0:00:34]} Nxd5 {[%emt 0:00:06]} 11. Qxd5 {[%emt 0:00:06]} Nf6 {[%emt 0:00:08]} 12. Qd2 {[%emt 0:00:19]} Nxe4 {[%emt 0:00:05]} 13. Qd3 {[%emt 0:00:26]} Nf6 {[%emt 0:00:43]} 14. c3 {[%emt 0:00:28]} e4 {[%emt 0:00:04]} 15. Qd4 {[%emt 0:00:45]} exf3 {[%emt 0:00:10]} 16. Bxf3 {[%emt 0:00:04]} Qa5 {[%emt 0:00:50]} 17. Rfd1 {[%emt 0:00:41]} Qe5 {[%emt 0:00:25]} 18. Qb6 {[%emt 0:00:35]} Bd8 {[%emt 0:01:58]} 19. Qb4 {[%emt 0:01:32]} Bc7 {[%emt 0:00:47]} 20. Bd4 {[%emt 0:01:30]} Qb5 {[%emt 0:00:45]} 21. Bxf6 {[%emt 0:01:21]} Qxb4 {[%emt 0:00:13]} 22. cxb4 {[%emt 0:00:01]} gxf6 {[%emt 0:00:01]} 23. Rac1 {[%emt 0:00:02]} Bb6 {[%emt 0:00:10]} 24. Rxd6 {[%emt 0:00:10]} Bd8 {[%emt 0:00:27]} 25. Rcd1 {[%emt 0:00:50]} Be7 {[%emt 0:00:01]} 26. R6d4 {[%emt 0:00:11]} Rb8 {[%emt 0:00:09]} 27. Re1 {[%emt 0:00:24]} Be6 {[%emt 0:00:03]} 28. b3 {[%emt 0:00:13]} Rfd8 {[%emt 0:00:47]} 29. Rh4 {[%emt 0:00:22]} Rd2 {[%emt 0:00:54]} 30. a3 {[%emt 0:00:25]} Rbd8 {[%emt 0:00:25]} 31. h3 {[%emt 0:00:11]} Rb2 {[%emt 0:00:19]} 32. Be4 {[%emt 0:00:48]} f5 {[%emt 0:00:14]} 33. Bxb7 {[%emt 0:00:22]} Bxh4 {[%emt 0:00:04]} 34. g3 {[%emt 0:00:19]} Bf6 {[%emt 0:00:18]} 35. Bxa6 {[%emt 0:00:24]} Rdd2 {[%emt 0:00:18]} 36. Rf1 {[%emt 0:00:26]} Bxb3 {[%emt 0:00:11]} 37. b5 {[%emt 0:00:11]} Bc4 {[%emt 0:00:05]} 38. Rc1 {[%emt 0:00:13]} Bxb5 {[%emt 0:00:08]} 39. Rc8+ {[%emt 0:00:16]} Kg7 {[%emt 0:00:04]} 40. Bxb5 {[%emt 0:00:35]} Rxb5 {[%emt 0:00:03]} 41. Rc1 {[%emt 0:00:34]} Ra2 {[%emt 0:00:05]} 42. h4 {[%emt 0:00:18]} Bd4 {[%emt 0:00:07]} 43. Rf1 {[%emt 0:00:13]} Rbb2 {[%emt 0:00:02]} 44. Kh2 {[%emt 0:00:25]} Rxf2+ {[%emt 0:00:03]} 45. Rxf2 {[%emt 0:00:03]} Rxf2+ {[%emt 0:00:11]} 46. Kh3 {[%emt 0:00:03]} Rf1 {[%emt 0:00:31]} 47. Kg2 {[%emt 0:00:04]} Rb1 {[%emt 0:00:06]} 48. a4 {[%emt 0:00:30]} Kf6 {[%emt 0:00:08]} 49. a5 {[%emt 0:00:05]} Ke5 {[%emt 0:00:09]} 50. a6 {[%emt 0:00:03]} Ke4 {[%emt 0:00:05] Kf1 [%clk 0:00:00] Kf3# [%clk 0:05:21] Ke1 [%clk 0:00:00]} 0-1

[Event "GER-ch Rapid Women 2017"]
[Site "Erfurt"]
[Date "2017.07.29"]
[Round "3"]
[White "Fuchs, Judith"]
[Black "Muetsch, Annmarie"]
[Result "1-0"]
[ECO "B30"]
[WhiteElo "2285"]
[BlackElo "2049"]
[Annotator "NA"]
[PlyCount "107"]
[EventDate "2017.??.??"]
[EventType "swiss"]
[EventCountry "GER"]
[SourceTitle "playchess.com"]
[Source "ChessBase"]
[SourceQuality "1"]
[TimeControl "1200"]

1. e4 {[%emt 0:00:02]} c5 {[%emt 0:00:01]} 2. Nf3 {[%emt 0:00:01]} Nc6 {[%emt 0:00:02]} 3. Nc3 {[%emt 0:00:01]} e5 {[%emt 0:00:11]} 4. Bb5 {[%emt 0:00:11]} d6 {[%emt 0:00:04]} 5. Bxc6+ {[%emt 0:00:08]} bxc6 {[%emt 0:00:02]} 6. O-O {[%emt 0:00:02]} g6 {[%emt 0:00:09]} 7. d3 {[%emt 0:00:03]} Bg7 {[%emt 0:00:05]} 8. h3 {[%emt 0:00:15]} Ne7 {[%emt 0:00:06]} 9. Nh2 {[%emt 0:00:23]} O-O {[%emt 0:00:17]} 10. f4 {[%emt 0:00:19]} f5 {[%emt 0:02:14]} 11. Qe1 {[%emt 0:00:08]} exf4 {[%emt 0:01:10]} 12. Bxf4 {[%emt 0:00:26]} d5 {[%emt 0:01:32]} 13. e5 {[%emt 0:01:07]} Be6 {[%emt 0:00:50]} 14. Nf3 {[%emt 0:00:06]} h6 {[%emt 0:00:48]} 15. h4 {[%emt 0:00:03]} Nc8 {[%emt 0:03:22]} 16. Na4 {[%emt 0:00:25]} Qe7 {[%emt 0:01:35]} 17. Qa5 {[%emt 0:00:19]} Rb8 {[%emt 0:00:40]} 18. Qxc5 {[%emt 0:01:10]} Rb4 {[%emt 0:00:53]} 19. Qxe7 {[%emt 0:00:09]} Nxe7 {[%emt 0:00:01]} 20. Nc5 {[%emt 0:00:02]} Bc8 {[%emt 0:00:23]} 21. Bc1 {[%emt 0:00:35]} d4 {[%emt 0:00:39]} 22. a4 {[%emt 0:01:45]} Rd8 {[%emt 0:00:53]} 23. Nb3 {[%emt 0:00:52]} Rd5 {[%emt 0:00:02]} 24. Bd2 {[%emt 0:00:16]} Rb7 {[%emt 0:00:35]} 25. Nbxd4 {[%emt 0:00:45]} Rxb2 {[%emt 0:00:16]} 26. Bc3 {[%emt 0:00:09]} Rb7 {[%emt 0:00:09]} 27. Rfe1 {[%emt 0:00:15]} c5 {[%emt 0:00:11]} 28. Nb5 {[%emt 0:00:23]} Be6 {[%emt 0:00:05]} 29. Rab1 {[%emt 0:00:57]} Nc6 {[%emt 0:00:07]} 30. Na3 {[%emt 0:00:25]} Rxb1 {[%emt 0:00:05]} 31. Nxb1 {[%emt 0:00:02]} c4 {[%emt 0:00:09]} 32. d4 {[%emt 0:00:08]} f4 {[%emt 0:00:11]} 33. Nbd2 {[%emt 0:00:23]} Rd8 {[%emt 0:00:03]} 34. Rb1 {[%emt 0:00:13]} Bd5 {[%emt 0:00:08]} 35. Rb5 {[%emt 0:00:31]} Bf8 {[%emt 0:00:04]} 36. Kf2 {[%emt 0:00:13]} Be7 {[%emt 0:00:02]} 37. Rb1 {[%emt 0:01:19]} g5 {[%emt 0:00:02]} 38. hxg5 {[%emt 0:00:07]} hxg5 {[%emt 0:00:01]} 39. Nh2 {[%emt 0:00:11]} Be6 {[%emt 0:00:07]} 40. Rb7 {[%emt 0:00:44]} Kf7 {[%emt 0:00:02]} 41. g3 {[%emt 0:00:19]} Nxd4 {[%emt 0:00:03]} 42. gxf4 {[%emt 0:00:14]} gxf4 {[%emt 0:00:03]} 43. Nhf3 {[%emt 0:00:00]} Nxf3 {[%emt 0:00:13]} 44. Nxf3 {[%emt 0:00:02]} Ke8 {[%emt 0:00:07]} 45. Ke2 {[%emt 0:00:14]} Bc5 {[%emt 0:00:13]} 46. Rh7 {[%emt 0:00:17]} Bf5 {[%emt 0:00:05]} 47. Rg7 {[%emt 0:00:14]} Bxc2 {[%emt 0:00:02]} 48. Ng5 {[%emt 0:00:03]} Bd1+ {[%emt 0:00:05]} 49. Ke1 {[%emt 0:00:01]} f3 {[%emt 0:00:05]} 50. Rg8+ {[%emt 0:00:04]} Ke7 {[%emt 0:00:09]} 51. Rxd8 {[%emt 0:00:03]} f2+ {[%emt 0:00:02]} 52. Kf1 {[%emt 0:00:01]} Kxd8 {[%emt 0:00:02]} 53. Ne6+ {[%emt 0:00:01]} Ke7 {[%emt 0:00:03]} 54. Nxc5 {[%emt 0:00:02]} 1-0

[Event "GER-ch Rapid Women 2017"]
[Site "Erfurt"]
[Date "2017.07.29"]
[Round "3"]
[White "Osmanodja, Filiz"]
[Black "Rath, Alina"]
[Result "1/2-1/2"]
[ECO "B63"]
[WhiteElo "2273"]
[BlackElo "2035"]
[Annotator "NA"]
[PlyCount "56"]
[EventDate "2017.??.??"]
[EventType "swiss"]
[EventCountry "GER"]
[SourceTitle "playchess.com"]
[Source "ChessBase"]
[SourceQuality "1"]
[TimeControl "1200"]

1. e4 {[%emt 0:00:01]} c5 {[%emt 0:00:01]} 2. Nc3 {[%emt 0:00:02]} Nc6 {[%emt 0:00:02]} 3. Nf3 {[%emt 0:00:02]} d6 {[%emt 0:00:03]} 4. d4 {[%emt 0:00:01]} cxd4 {[%emt 0:00:01]} 5. Nxd4 {[%emt 0:00:02]} Nf6 {[%emt 0:00:02]} 6. Bg5 {[%emt 0:00:16]} e6 {[%emt 0:00:02]} 7. Qd2 {[%emt 0:00:07]} Be7 {[%emt 0:00:03]} 8. O-O-O {[%emt 0:00:41]} O-O {[%emt 0:00:04]} 9. Nb3 {[%emt 0:00:40]} a6 {[%emt 0:00:25]} 10. Bxf6 {[%emt 0:01:56]} gxf6 {[%emt 0:00:06]} 11. f4 {[%emt 0:00:10]} Kh8 {[%emt 0:00:08]} 12. g3 {[%emt 0:01:28]} Qc7 {[%emt 0:00:15]} 13. Bh3 {[%emt 0:00:18]} Rg8 {[%emt 0:00:39]} 14. f5 {[%emt 0:00:31]} b5 {[%emt 0:00:36]} 15. Ne2 {[%emt 0:00:02]} Ne5 {[%emt 0:00:43]} 16. Nf4 {[%emt 0:04:37]} Nc4 17. Qe2 {[%emt 0:00:10]} e5 {[%emt 0:02:05]} 18. Nd5 {[%emt 0:00:01]} Qd8 {[%emt 0:00:01]} 19. Qh5 {[%emt 0:00:33]} Rg7 {[%emt 0:00:04]} 20. Nd2 {[%emt 0:02:56]} Nb6 {[%emt 0:00:49]} 21. Nf1 {[%emt 0:01:28]} Nxd5 {[%emt 0:00:37]} 22. Rxd5 {[%emt 0:00:01]} Bb7 {[%emt 0:00:01]} 23. Ne3 {[%emt 0:00:00]} Rc8 {[%emt 0:01:30]} 24. Kb1 {[%emt 0:00:04]} Qc7 {[%emt 0:00:16]} 25. Qe2 {[%emt 0:00:08]} Rgg8 {[%emt 0:00:53]} 26. Rhd1 {[%emt 0:00:01]} Bf8 {[%emt 0:00:32]} 27. Bg2 {[%emt 0:00:17]} Be7 {[%emt 0:00:28]} 28. R5d3 {[%emt 0:00:08]} Qc5 {[%emt 0:00:49]} 1/2-1/2

[Event "GER-ch Rapid Women 2017"]
[Site "Erfurt"]
[Date "2017.07.29"]
[Round "3"]
[White "Rogozenco, Teodora"]
[Black "Mader, Manuela"]
[Result "0-1"]
[ECO "E63"]
[WhiteElo "2169"]
[BlackElo "2203"]
[Annotator "NA"]
[PlyCount "68"]
[EventDate "2017.??.??"]
[EventType "swiss"]
[EventCountry "GER"]
[SourceTitle "playchess.com"]
[Source "ChessBase"]
[SourceQuality "1"]
[TimeControl "1200"]

1. d4 {[%emt 0:00:01]} Nf6 {[%emt 0:00:05]} 2. c4 {[%emt 0:00:01]} g6 {[%emt 0:00:01]} 3. Nc3 {[%emt 0:00:04]} Bg7 {[%emt 0:00:01]} 4. g3 {[%emt 0:00:03]} O-O {[%emt 0:00:02]} 5. Bg2 {[%emt 0:00:01]} d6 {[%emt 0:00:00]} 6. Nf3 {[%emt 0:00:01]} a6 {[%emt 0:00:01]} 7. O-O {[%emt 0:00:03]} Nc6 {[%emt 0:00:01]} 8. Qd3 {[%emt 0:00:03]} Bd7 {[%emt 0:01:23]} 9. d5 {[%emt 0:00:36]} Nb4 {[%emt 0:00:06]} 10. Qd1 {[%emt 0:00:14]} a5 {[%emt 0:00:01]} 11. a3 {[%emt 0:00:13]} Na6 {[%emt 0:00:01]} 12. Nd4 {[%emt 0:01:08]} Nc5 {[%emt 0:00:44]} 13. b3 {[%emt 0:00:01]} Qc8 {[%emt 0:03:43]} 14. Re1 {[%emt 0:02:03]} Bh3 {[%emt 0:03:06]} 15. Bh1 {[%emt 0:00:01]} Nfd7 {[%emt 0:00:46]} 16. Rb1 {[%emt 0:00:17]} Nb6 {[%emt 0:00:09]} 17. e4 {[%emt 0:01:51]} a4 {[%emt 0:00:12]} 18. b4 {[%emt 0:00:36]} Ncd7 {[%emt 0:00:36]} 19. Bg5 {[%emt 0:01:51]} Re8 {[%emt 0:00:51]} 20. Ncb5 {[%emt 0:00:33]} c6 {[%emt 0:02:21]} 21. c5 {[%emt 0:01:19]} cxb5 {[%emt 0:00:21]} 22. cxb6 {[%emt 0:00:02]} Nxb6 {[%emt 0:00:31]} 23. Rc1 {[%emt 0:00:16]} Qd7 {[%emt 0:00:01]} 24. Qd3 {[%emt 0:00:25]} h6 {[%emt 0:01:50]} 25. Bf4 {[%emt 0:01:20]} Nc4 {[%emt 0:00:03]} 26. Nxb5 {[%emt 0:00:16]} Qxb5 {[%emt 0:00:01]} 27. Rxc4 {[%emt 0:00:32]} Rac8 {[%emt 0:01:05]} 28. Rxc8 {[%emt 0:03:25]} Qxd3 {[%emt 0:00:01]} 29. Rxe8+ {[%emt 0:00:01]} Kh7 {[%emt 0:00:01]} 30. Rxe7 Bc3 {[%emt 0:00:21]} 31. Rc1 {[%emt 0:00:14]} Bb2 {[%emt 0:00:10]} 32. Re1 {[%emt 0:01:01]} Qc3 {[%emt 0:00:19]} 33. Re2 {[%emt 0:00:26]} Bxa3 {[%emt 0:00:09]} 34. Bg2 {[%emt 0:00:06]} Qa1+ {[%emt 0:00:05]} 0-1

[Event "GER-ch Rapid Women 2017"]
[Site "Erfurt"]
[Date "2017.07.29"]
[Round "3"]
[White "Hess, Olena"]
[Black "Zimmer, Elke"]
[Result "1-0"]
[ECO "E91"]
[WhiteElo "2094"]
[BlackElo "1950"]
[Annotator "NA"]
[PlyCount "87"]
[EventDate "2017.??.??"]
[EventType "swiss"]
[EventCountry "GER"]
[SourceTitle "playchess.com"]
[Source "ChessBase"]
[SourceQuality "1"]
[TimeControl "1200"]

1. Nf3 {[%emt 0:00:01]} Nf6 {[%emt 0:00:02]} 2. c4 {[%emt 0:00:05]} g6 {[%emt 0:00:03]} 3. Nc3 {[%emt 0:00:05]} Bg7 {[%emt 0:00:02]} 4. e4 {[%emt 0:00:06]} d6 {[%emt 0:00:01]} 5. d4 {[%emt 0:00:04]} O-O {[%emt 0:00:17]} 6. Be2 {[%emt 0:00:03]} c5 {[%emt 0:00:23]} 7. O-O {[%emt 0:00:11]} Nc6 {[%emt 0:00:31]} 8. d5 {[%emt 0:00:18]} Nb8 {[%emt 0:01:06]} 9. Re1 {[%emt 0:00:28]} e6 {[%emt 0:00:54]} 10. Bf1 {[%emt 0:00:19]} e5 {[%emt 0:00:02]} 11. Rb1 {[%emt 0:01:03]} a6 {[%emt 0:00:26]} 12. a3 {[%emt 0:00:12]} Bg4 {[%emt 0:00:23]} 13. h3 {[%emt 0:00:31]} Bd7 {[%emt 0:00:01]} 14. b4 {[%emt 0:00:38]} b6 {[%emt 0:00:01]} 15. bxc5 {[%emt 0:00:55]} bxc5 {[%emt 0:00:02]} 16. Na4 {[%emt 0:02:33]} Bxa4 {[%emt 0:00:05]} 17. Qxa4 {[%emt 0:00:01]} Nbd7 {[%emt 0:00:23]} 18. Bd2 {[%emt 0:00:37]} Re8 {[%emt 0:00:59]} 19. Ba5 {[%emt 0:00:19]} Qc8 {[%emt 0:00:12]} 20. Qc6 {[%emt 0:01:22]} Bf8 {[%emt 0:00:32]} 21. Bd3 {[%emt 0:01:44]} Nh5 {[%emt 0:01:40]} 22. Rb7 {[%emt 0:00:50]} Qxc6 {[%emt 0:01:39]} 23. dxc6 {[%emt 0:00:02]} Nb8 {[%emt 0:00:01]} 24. c7 {[%emt 0:00:22]} Nc6 {[%emt 0:00:01]} 25. Bb6 {[%emt 0:01:08]} a5 {[%emt 0:00:50]} 26. g3 {[%emt 0:00:39]} Ng7 {[%emt 0:00:06]} 27. Ng5 {[%emt 0:00:37]} Rec8 {[%emt 0:00:01]} 28. Be2 {[%emt 0:00:14]} h6 {[%emt 0:00:02]} 29. Nf3 {[%emt 0:00:01]} Ne6 {[%emt 0:00:06]} 30. Rb1 {[%emt 0:00:16]} a4 {[%emt 0:00:34]} 31. Bd1 {[%emt 0:00:13]} Kg7 {[%emt 0:00:18]} 32. Ne1 {[%emt 0:00:04]} Ned4 {[%emt 0:00:52]} 33. Ng2 {[%emt 0:00:03]} g5 {[%emt 0:00:02]} 34. Ne3 {[%emt 0:00:01]} Ne6 {[%emt 0:01:45]} 35. Nd5 {[%emt 0:00:02]} h5 {[%emt 0:00:31]} 36. Bxh5 {[%emt 0:00:13]} Be7 {[%emt 0:00:52]} 37. Bd1 {[%emt 0:00:04]} Bf6 {[%emt 0:00:08]} 38. Nc3 {[%emt 0:00:02]} Ned4 {[%emt 0:00:12]} 39. Kf1 {[%emt 0:00:18]} Ra6 {[%emt 0:00:42]} 40. Bxa4 {[%emt 0:00:07]} Rxb6 {[%emt 0:00:21]} 41. R1xb6 {[%emt 0:00:04]} Ne7 {[%emt 0:00:01]} 42. Bd7 Ra8 43. a4 {[%emt 0:00:18]} Ne6 {[%emt 0:00:04]} 44. Rb8 {[%emt 0:00:07]} 1-0